[Event "*** Titled Tuesday Blitz"]
[Site "Chess.com"]
[Date "2020.11.10"]
[Round "2"]
[White "TokChess"]
[Black "wanyaland"]
[Result "0-1"]
[WhiteElo "2441"]
[BlackElo "2272"]
[TimeControl "180+1"]
[EndTime "10:16:53 PST"]
[Termination "wanyaland won by resignation"]

1. d3 {[%clk 0:03:00.9]} 1... d5 {[%clk 0:02:52.3]} 2. Nf3 {[%clk 0:03:01.4]}
2... c5 {[%clk 0:02:51]} 3. g3 {[%clk 0:03:01.8]} 3... Nc6 {[%clk 0:02:50.9]} 4.
Bg2 {[%clk 0:03:02.5]} 4... Nf6 {[%clk 0:02:50.7]} 5. O-O {[%clk 0:03:03.1]}
5... e5 {[%clk 0:02:51]} 6. Nbd2 {[%clk 0:03:03.7]} 6... Be7 {[%clk 0:02:47.4]}
7. e4 {[%clk 0:03:03.9]} 7... O-O {[%clk 0:02:46.4]} 8. Nh4 {[%clk 0:02:55.5]}
8... Re8 {[%clk 0:02:43.8]} 9. Re1 {[%clk 0:02:53.5]} 9... Bf8 {[%clk
0:02:43.1]} 10. c3 {[%clk 0:02:51.8]} 10... Rb8 {[%clk 0:02:42]} 11. a4 {[%clk
0:02:51.1]} 11... b6 {[%clk 0:02:41.4]} 12. Qc2 {[%clk 0:02:48.4]} 12... a6
{[%clk 0:02:41.1]} 13. b3 {[%clk 0:02:40.2]} 13... Bb7 {[%clk 0:02:40.1]} 14.
Nf5 {[%clk 0:02:36.5]} 14... Rc8 {[%clk 0:02:39.2]} 15. Bb2 {[%clk 0:02:33.2]}
15... g6 {[%clk 0:02:36.9]} 16. Ne3 {[%clk 0:02:32.3]} 16... d4 {[%clk
0:02:34.5]} 17. Nec4 {[%clk 0:02:31.6]} 17... dxc3 {[%clk 0:02:32.5]} 18. Bxc3
{[%clk 0:02:31.7]} 18... Nb4 {[%clk 0:02:21.6]} 19. Bxb4 {[%clk 0:02:26.4]}
19... cxb4 {[%clk 0:02:22.5]} 20. Qb1 {[%clk 0:02:21]} 20... Bc5 {[%clk
0:02:21]} 21. h3 {[%clk 0:02:13]} 21... Nh5 {[%clk 0:02:15.2]} 22. Ne3 {[%clk
0:02:10.9]} 22... Bd4 {[%clk 0:02:09.2]} 23. Ra2 {[%clk 0:02:10.2]} 23... Rc3
{[%clk 0:02:04.1]} 24. Ndc4 {[%clk 0:02:04.4]} 24... b5 {[%clk 0:02:00.5]} 25.
axb5 {[%clk 0:02:04]} 25... axb5 {[%clk 0:02:01.2]} 26. Na5 {[%clk 0:01:57.9]}
26... Ba8 {[%clk 0:02:01]} 27. Kh2 {[%clk 0:01:54.6]} 27... Qb6 {[%clk 0:01:57]}
28. Nd5 {[%clk 0:01:50.5]} 28... Bxd5 {[%clk 0:01:54.8]} 29. exd5 {[%clk
0:01:50.7]} 29... Bxf2 {[%clk 0:01:54.4]} 30. Rf1 {[%clk 0:01:46.2]} 30... Bxg3+
{[%clk 0:01:54.2]} 31. Kh1 {[%clk 0:01:46.1]} 31... Bf4 {[%clk 0:01:54.2]} 0-1

[Event "*** Titled Tuesday Blitz"]
[Site "Chess.com"]
[Date "2020.11.10"]
[Round "2"]
[White "UmarovSabir"]
[Black "cassoulet"]
[Result "0-1"]
[WhiteElo "2316"]
[BlackElo "2647"]
[TimeControl "180+1"]
[EndTime "10:17:03 PST"]
[Termination "cassoulet won by resignation"]

1. e4 {[%clk 0:03:00]} 1... d5 {[%clk 0:02:59.6]} 2. exd5 {[%clk 0:02:58.9]}
2... Qxd5 {[%clk 0:03:00.5]} 3. Nc3 {[%clk 0:02:58.3]} 3... Qd8 {[%clk
0:03:01.4]} 4. g3 {[%clk 0:02:57.4]} 4... Nf6 {[%clk 0:03:00.1]} 5. Bg2 {[%clk
0:02:57.8]} 5... g6 {[%clk 0:03:00.4]} 6. Nge2 {[%clk 0:02:57.8]} 6... Bg7
{[%clk 0:03:01]} 7. O-O {[%clk 0:02:58.1]} 7... O-O {[%clk 0:03:01.6]} 8. d4
{[%clk 0:02:57.2]} 8... c6 {[%clk 0:03:02]} 9. h3 {[%clk 0:02:56.9]} 9... Na6
{[%clk 0:03:01.9]} 10. Be3 {[%clk 0:02:55.5]} 10... Nc7 {[%clk 0:03:01.9]} 11.
Qd2 {[%clk 0:02:53.9]} 11... Ncd5 {[%clk 0:03:02.1]} 12. Bh6 {[%clk 0:02:53.3]}
12... Be6 {[%clk 0:02:59.1]} 13. Bxg7 {[%clk 0:02:52.4]} 13... Kxg7 {[%clk
0:03:00]} 14. Rad1 {[%clk 0:02:52.3]} 14... Qd7 {[%clk 0:02:59.8]} 15. Kh2
{[%clk 0:02:51.8]} 15... Rad8 {[%clk 0:02:59.6]} 16. Nxd5 {[%clk 0:02:46.5]}
16... Bxd5 {[%clk 0:02:59.1]} 17. Qe3 {[%clk 0:02:05.3]} 17... Bxg2 {[%clk
0:02:57.5]} 18. Kxg2 {[%clk 0:02:05.2]} 18... Qd5+ {[%clk 0:02:57.4]} 19. Kh2
{[%clk 0:02:01]} 19... Qxa2 {[%clk 0:02:57.6]} 20. Ra1 {[%clk 0:01:29.9]} 20...
Qxb2 {[%clk 0:02:57.3]} 21. Rxa7 {[%clk 0:01:30.2]} 21... Rd7 {[%clk 0:02:47.8]}
22. c4 {[%clk 0:01:25.2]} 22... Rfd8 {[%clk 0:02:44.2]} 23. Raa1 {[%clk
0:01:03.7]} 23... Qc2 {[%clk 0:02:36]} 24. Rab1 {[%clk 0:00:51.3]} 24... Qxc4
{[%clk 0:02:33.8]} 25. Rfc1 {[%clk 0:00:48]} 25... Qa2 {[%clk 0:02:31]} 26. Rb6
{[%clk 0:00:44.2]} 26... Nd5 {[%clk 0:02:30]} 0-1

[Event "*** Titled Tuesday Blitz"]
[Site "Chess.com"]
[Date "2020.11.10"]
[Round "2"]
[White "Neftegor"]
[Black "VMikhalevski"]
[Result "0-1"]
[WhiteElo "2473"]
[BlackElo "2703"]
[TimeControl "180+1"]
[EndTime "10:17:11 PST"]
[Termination "VMikhalevski won by resignation"]

1. d4 {[%clk 0:03:00.9]} 1... Nf6 {[%clk 0:02:59]} 2. c4 {[%clk 0:03:00.8]} 2...
g6 {[%clk 0:02:59.5]} 3. Nc3 {[%clk 0:03:00.8]} 3... d5 {[%clk 0:03:00.2]} 4.
Nf3 {[%clk 0:03:00.7]} 4... Bg7 {[%clk 0:02:58.6]} 5. Qb3 {[%clk 0:03:00.7]}
5... dxc4 {[%clk 0:02:57.6]} 6. Qxc4 {[%clk 0:03:00.9]} 6... O-O {[%clk
0:02:57.7]} 7. e4 {[%clk 0:03:01]} 7... Be6 {[%clk 0:02:56.9]} 8. Qd3 {[%clk
0:02:59.1]} 8... Na6 {[%clk 0:02:49.7]} 9. Be2 {[%clk 0:02:55.5]} 9... c5 {[%clk
0:02:42.6]} 10. d5 {[%clk 0:02:54.1]} 10... Bg4 {[%clk 0:02:41.8]} 11. O-O
{[%clk 0:02:52.8]} 11... e6 {[%clk 0:02:36.1]} 12. d6 {[%clk 0:02:49.3]} 12...
Nb4 {[%clk 0:02:31.7]} 13. Qd1 {[%clk 0:02:49]} 13... Nd7 {[%clk 0:02:29.1]} 14.
Bg5 {[%clk 0:02:45.7]} 14... Bf6 {[%clk 0:02:21.4]} 15. Be3 {[%clk 0:02:45.1]}
15... Nc6 {[%clk 0:02:17.8]} 16. Nb5 {[%clk 0:01:48.8]} 16... Bxf3 {[%clk
0:02:15.3]} 17. gxf3 {[%clk 0:01:41.1]} 17... Bxb2 {[%clk 0:02:13.8]} 18. Rb1
{[%clk 0:01:40.3]} 18... Bg7 {[%clk 0:02:13.1]} 19. f4 {[%clk 0:01:37.8]} 19...
e5 {[%clk 0:02:09.2]} 20. Bg4 {[%clk 0:01:36.7]} 20... b6 {[%clk 0:02:02.9]} 21.
Qd5 {[%clk 0:01:31.7]} 21... Nb4 {[%clk 0:02:01.7]} 22. Rxb4 {[%clk 0:01:29.7]}
22... cxb4 {[%clk 0:01:59.6]} 23. Rd1 {[%clk 0:01:17.6]} 23... Nf6 {[%clk
0:01:58.2]} 24. Qxe5 {[%clk 0:01:04.2]} 24... Nxg4 {[%clk 0:01:58]} 25. Qg5
{[%clk 0:00:59.5]} 25... Qxg5 {[%clk 0:01:55.8]} 26. fxg5 {[%clk 0:00:59.1]}
26... Nxe3 {[%clk 0:01:55.9]} 27. fxe3 {[%clk 0:00:58.8]} 0-1

[Event "*** Titled Tuesday Blitz"]
[Site "Chess.com"]
[Date "2020.11.10"]
[Round "2"]
[White "zaur-mammadov"]
[Black "IceBelka"]
[Result "1-0"]
[WhiteElo "2638"]
[BlackElo "2294"]
[TimeControl "180+1"]
[EndTime "10:17:11 PST"]
[Termination "zaur-mammadov won by resignation"]

1. e4 {[%clk 0:03:00.9]} 1... c6 {[%clk 0:02:58.4]} 2. Nc3 {[%clk 0:02:59.4]}
2... d5 {[%clk 0:02:57]} 3. Nf3 {[%clk 0:03:00.2]} 3... Nf6 {[%clk 0:02:54.8]}
4. e5 {[%clk 0:02:53.5]} 4... Ne4 {[%clk 0:02:54.2]} 5. Ne2 {[%clk 0:02:53.6]}
5... Qb6 {[%clk 0:02:53.6]} 6. d4 {[%clk 0:02:54.1]} 6... e6 {[%clk 0:02:52.5]}
7. Nfg1 {[%clk 0:02:54.8]} 7... f6 {[%clk 0:02:47.6]} 8. f3 {[%clk 0:02:54.9]}
8... Ng5 {[%clk 0:02:45.3]} 9. h4 {[%clk 0:02:55.4]} 9... Nf7 {[%clk 0:02:40]}
10. f4 {[%clk 0:02:56.3]} 10... c5 {[%clk 0:02:20.9]} 11. c3 {[%clk 0:02:56.4]}
11... Nc6 {[%clk 0:02:17.7]} 12. Nf3 {[%clk 0:02:56.4]} 12... Bd7 {[%clk
0:02:11.4]} 13. g3 {[%clk 0:02:56.2]} 13... Be7 {[%clk 0:01:57.8]} 14. Bh3
{[%clk 0:02:56]} 14... fxe5 {[%clk 0:01:39.6]} 15. fxe5 {[%clk 0:02:55.2]} 15...
O-O {[%clk 0:01:38.1]} 16. Nf4 {[%clk 0:02:51.9]} 16... cxd4 {[%clk 0:01:35.4]}
17. cxd4 {[%clk 0:02:52.5]} 17... Bb4+ {[%clk 0:01:31.7]} 18. Kf1 {[%clk
0:02:44.9]} 18... Ncxe5 {[%clk 0:01:29.7]} 19. dxe5 {[%clk 0:02:40.1]} 19...
Rae8 {[%clk 0:00:50.5]} 20. Kg2 {[%clk 0:02:37.6]} 20... Bc6 {[%clk 0:00:48.1]}
21. a3 {[%clk 0:02:36.8]} 21... Bc5 {[%clk 0:00:40.7]} 22. b4 {[%clk 0:02:36.5]}
22... Be3 {[%clk 0:00:33.2]} 23. Bxe3 {[%clk 0:02:30.7]} 23... Qxe3 {[%clk
0:00:34.1]} 24. Re1 {[%clk 0:02:30.7]} 24... Qb6 {[%clk 0:00:31.4]} 25. Qd4
{[%clk 0:02:31.1]} 25... Qxd4 {[%clk 0:00:24.3]} 26. Nxd4 {[%clk 0:02:32]} 1-0

[Event "*** Titled Tuesday Blitz"]
[Site "Chess.com"]
[Date "2020.11.10"]
[Round "2"]
[White "seorobert1971"]
[Black "Manukyan_Artak"]
[Result "1-0"]
[WhiteElo "2689"]
[BlackElo "2331"]
[TimeControl "180+1"]
[EndTime "10:17:18 PST"]
[Termination "seorobert1971 won by resignation"]

1. c4 {[%clk 0:03:00.9]} 1... g6 {[%clk 0:02:59.4]} 2. Nc3 {[%clk 0:03:01.8]}
2... Bg7 {[%clk 0:03:00.3]} 3. g3 {[%clk 0:03:02]} 3... c5 {[%clk 0:03:00.1]} 4.
Bg2 {[%clk 0:03:02.1]} 4... Nc6 {[%clk 0:03:01]} 5. Nf3 {[%clk 0:03:02.2]} 5...
e5 {[%clk 0:03:00.8]} 6. O-O {[%clk 0:03:00.9]} 6... f5 {[%clk 0:03:01]} 7. d3
{[%clk 0:03:00.7]} 7... Nf6 {[%clk 0:03:00.1]} 8. Rb1 {[%clk 0:03:00.4]} 8...
O-O {[%clk 0:02:59.1]} 9. a3 {[%clk 0:03:00.3]} 9... a5 {[%clk 0:02:58.5]} 10.
Bd2 {[%clk 0:02:57.3]} 10... Nd4 {[%clk 0:02:51]} 11. e3 {[%clk 0:02:55.8]}
11... Nxf3+ {[%clk 0:02:50.7]} 12. Qxf3 {[%clk 0:02:55.3]} 12... d6 {[%clk
0:02:43.3]} 13. b4 {[%clk 0:02:51.9]} 13... axb4 {[%clk 0:02:42.8]} 14. axb4
{[%clk 0:02:51.7]} 14... g5 {[%clk 0:02:36.4]} 15. bxc5 {[%clk 0:02:48.4]} 15...
dxc5 {[%clk 0:02:35.8]} 16. Nd5 {[%clk 0:02:48.3]} 16... g4 {[%clk 0:02:17.7]}
17. Nxf6+ {[%clk 0:02:45.4]} 17... Bxf6 {[%clk 0:01:55.3]} 18. Qd5+ {[%clk
0:02:44.8]} 18... Kh8 {[%clk 0:01:48.9]} 19. Bc3 {[%clk 0:02:39.6]} 19... Qxd5
{[%clk 0:01:40.6]} 20. Bxd5 {[%clk 0:02:38.9]} 20... Ra3 {[%clk 0:01:40.6]} 21.
Rfc1 {[%clk 0:02:37.9]} 21... f4 {[%clk 0:01:29.1]} 22. Bxb7 {[%clk 0:02:27]}
22... Bxb7 {[%clk 0:01:22.9]} 23. Rxb7 {[%clk 0:02:25.6]} 23... fxe3 {[%clk
0:01:22.3]} 24. fxe3 {[%clk 0:02:24.9]} 24... Rd8 {[%clk 0:01:08]} 25. Rf7
{[%clk 0:02:17.5]} 25... Bg7 {[%clk 0:01:05.5]} 26. Re7 {[%clk 0:02:09]} 26...
h5 {[%clk 0:00:54.8]} 27. Bxe5 {[%clk 0:02:06.5]} 27... Bxe5 {[%clk 0:00:54.4]}
28. Rxe5 {[%clk 0:02:06.2]} 28... Rdxd3 {[%clk 0:00:54.4]} 29. Rxh5+ {[%clk
0:02:06]} 29... Kg7 {[%clk 0:00:54.2]} 30. Rxc5 {[%clk 0:02:05.6]} 1-0

[Event "*** Titled Tuesday Blitz"]
[Site "Chess.com"]
[Date "2020.11.10"]
[Round "2"]
[White "GigaQuparadze"]
[Black "bazar-wokzal"]
[Result "1-0"]
[WhiteElo "2738"]
[BlackElo "2506"]
[TimeControl "180+1"]
[EndTime "10:17:35 PST"]
[Termination "GigaQuparadze won by resignation"]

1. e4 {[%clk 0:03:00.9]} 1... c5 {[%clk 0:02:59.2]} 2. Ne2 {[%clk 0:03:00.5]}
2... Nf6 {[%clk 0:02:57]} 3. e5 {[%clk 0:03:00.1]} 3... Nd5 {[%clk 0:02:56.8]}
4. c4 {[%clk 0:02:59.2]} 4... Nb4 {[%clk 0:02:47]} 5. d4 {[%clk 0:02:58.6]} 5...
cxd4 {[%clk 0:02:46.7]} 6. Nxd4 {[%clk 0:02:58.7]} 6... N4c6 {[%clk 0:02:42.1]}
7. Nc3 {[%clk 0:02:57.5]} 7... Nxe5 {[%clk 0:02:39.5]} 8. g3 {[%clk 0:02:55.3]}
8... Nbc6 {[%clk 0:02:36.9]} 9. Bg2 {[%clk 0:02:55.2]} 9... Nxd4 {[%clk
0:02:34.1]} 10. Qxd4 {[%clk 0:02:54.1]} 10... Nc6 {[%clk 0:02:31.1]} 11. Qd1
{[%clk 0:02:49.3]} 11... g6 {[%clk 0:02:28.9]} 12. h4 {[%clk 0:02:47.4]} 12...
h5 {[%clk 0:02:27.9]} 13. O-O {[%clk 0:02:46.6]} 13... Bg7 {[%clk 0:02:27.6]}
14. Re1 {[%clk 0:02:45.7]} 14... O-O {[%clk 0:02:27.5]} 15. Nd5 {[%clk
0:02:45.7]} 15... d6 {[%clk 0:02:26.2]} 16. Bg5 {[%clk 0:02:43.8]} 16... Re8
{[%clk 0:02:21.4]} 17. c5 {[%clk 0:02:43.6]} 17... dxc5 {[%clk 0:01:58.5]} 18.
Nxe7+ {[%clk 0:02:38.8]} 18... Nxe7 {[%clk 0:01:58.2]} 19. Qxd8 {[%clk
0:02:37.8]} 19... Rxd8 {[%clk 0:01:58]} 20. Bxe7 {[%clk 0:02:37.4]} 20... Rd2
{[%clk 0:01:48.9]} 21. Bg5 {[%clk 0:02:30.8]} 21... Rxb2 {[%clk 0:01:40.8]} 22.
Re8+ {[%clk 0:02:29.9]} 22... Kh7 {[%clk 0:01:40.6]} 23. Rc1 {[%clk 0:02:30.3]}
23... Bd4 {[%clk 0:01:37.5]} 24. Be3 {[%clk 0:02:09]} 24... Bxe3 {[%clk
0:01:30.2]} 25. Rxe3 {[%clk 0:02:06.5]} 25... Be6 {[%clk 0:01:23.7]} 26. Rxc5
{[%clk 0:02:04.9]} 26... Bxa2 {[%clk 0:01:12.8]} 27. Rc7 {[%clk 0:02:01.3]}
27... Rb8 {[%clk 0:01:10.2]} 28. Ree7 {[%clk 0:02:00.6]} 28... a5 {[%clk
0:01:09.5]} 29. Bxb7 {[%clk 0:01:59.5]} 29... a4 {[%clk 0:01:08.4]} 30. Bc6
{[%clk 0:01:58.7]} 30... a3 {[%clk 0:01:08]} 31. Ra7 {[%clk 0:01:58.7]} 31...
R2b3 {[%clk 0:01:01.7]} 32. Rxf7+ {[%clk 0:01:55.1]} 32... Kg8 {[%clk
0:00:58.8]} 33. Rg7+ {[%clk 0:01:55.1]} 33... Kh8 {[%clk 0:00:58.2]} 34. Rh7+
{[%clk 0:01:54.8]} 1-0

[Event "*** Titled Tuesday Blitz"]
[Site "Chess.com"]
[Date "2020.11.10"]
[Round "2"]
[White "Grandelicious"]
[Black "pastouche06"]
[Result "1-0"]
[WhiteElo "2806"]
[BlackElo "2534"]
[TimeControl "180+1"]
[EndTime "10:17:42 PST"]
[Termination "Grandelicious won by resignation"]

1. e4 {[%clk 0:03:00.9]} 1... c6 {[%clk 0:03:00]} 2. d4 {[%clk 0:03:00.6]} 2...
d5 {[%clk 0:03:00.3]} 3. exd5 {[%clk 0:03:01.5]} 3... cxd5 {[%clk 0:03:01.2]} 4.
Bd3 {[%clk 0:03:02.1]} 4... Nc6 {[%clk 0:03:01.1]} 5. c3 {[%clk 0:03:02.6]} 5...
Qc7 {[%clk 0:03:00.9]} 6. h3 {[%clk 0:03:01.4]} 6... Nf6 {[%clk 0:02:59.8]} 7.
Nf3 {[%clk 0:03:00]} 7... g6 {[%clk 0:02:59.8]} 8. Qc2 {[%clk 0:03:00.1]} 8...
Bg7 {[%clk 0:02:54.3]} 9. O-O {[%clk 0:03:00.2]} 9... O-O {[%clk 0:02:54.5]} 10.
Re1 {[%clk 0:02:59.6]} 10... Re8 {[%clk 0:02:51.2]} 11. Be3 {[%clk 0:02:54.1]}
11... Nh5 {[%clk 0:02:40.8]} 12. Qd2 {[%clk 0:02:34.4]} 12... e5 {[%clk
0:02:34.7]} 13. dxe5 {[%clk 0:02:32.9]} 13... Nxe5 {[%clk 0:02:35.6]} 14. Nxe5
{[%clk 0:02:32.7]} 14... Bxe5 {[%clk 0:02:36.5]} 15. Na3 {[%clk 0:02:30.2]}
15... Bd7 {[%clk 0:02:22.7]} 16. Bf1 {[%clk 0:02:27]} 16... Bf4 {[%clk
0:02:11.5]} 17. Nc2 {[%clk 0:02:18.7]} 17... Bc6 {[%clk 0:01:58.2]} 18. Rad1
{[%clk 0:02:08.3]} 18... Rad8 {[%clk 0:01:51.4]} 19. Qd4 {[%clk 0:01:57.6]}
19... Re4 {[%clk 0:01:23.9]} 20. Bxf4 {[%clk 0:01:54.7]} 20... Rxf4 {[%clk
0:01:17.2]} 21. Qxa7 {[%clk 0:01:50.9]} 21... Ra4 {[%clk 0:01:15.5]} 22. Qc5
{[%clk 0:01:45.6]} 22... b6 {[%clk 0:00:55.6]} 23. Qe7 {[%clk 0:01:43.3]} 23...
Qxe7 {[%clk 0:00:53.9]} 24. Rxe7 {[%clk 0:01:44.2]} 24... Rxa2 {[%clk
0:00:54.4]} 25. Nb4 {[%clk 0:01:44.5]} 25... Ba4 {[%clk 0:00:50.4]} 26. Rb1
{[%clk 0:01:41.4]} 1-0

[Event "*** Titled Tuesday Blitz"]
[Site "Chess.com"]
[Date "2020.11.10"]
[Round "2"]
[White "Omk124"]
[Black "sm_sharon"]
[Result "1-0"]
[WhiteElo "2396"]
[BlackElo "2128"]
[TimeControl "180+1"]
[EndTime "10:17:42 PST"]
[Termination "Omk124 won by resignation"]

1. e4 {[%clk 0:03:00.9]} 1... g6 {[%clk 0:03:00.6]} 2. d4 {[%clk 0:03:00.7]}
2... Bg7 {[%clk 0:03:01.1]} 3. Nf3 {[%clk 0:03:00.2]} 3... d6 {[%clk 0:03:01.6]}
4. Bc4 {[%clk 0:02:58.5]} 4... a6 {[%clk 0:02:59.5]} 5. a4 {[%clk 0:02:58.2]}
5... b6 {[%clk 0:02:57.4]} 6. Nc3 {[%clk 0:02:57.9]} 6... Bb7 {[%clk 0:02:55]}
7. O-O {[%clk 0:02:57.9]} 7... e6 {[%clk 0:02:50.7]} 8. Re1 {[%clk 0:02:57.2]}
8... Ne7 {[%clk 0:02:43.6]} 9. Bg5 {[%clk 0:02:55.3]} 9... h6 {[%clk 0:02:42.8]}
10. Be3 {[%clk 0:02:48.6]} 10... O-O {[%clk 0:02:42.4]} 11. Qd2 {[%clk
0:02:48.2]} 11... Kh7 {[%clk 0:02:41.5]} 12. Rad1 {[%clk 0:02:46.1]} 12... Nd7
{[%clk 0:02:38.3]} 13. h3 {[%clk 0:02:42]} 13... Nf6 {[%clk 0:02:31.2]} 14. Bf4
{[%clk 0:02:38.8]} 14... Nxe4 {[%clk 0:02:18]} 15. Nxe4 {[%clk 0:02:37.2]} 15...
d5 {[%clk 0:02:18.2]} 16. Neg5+ {[%clk 0:02:29.9]} 16... hxg5 {[%clk 0:02:17.5]}
17. Nxg5+ {[%clk 0:02:30.8]} 17... Kg8 {[%clk 0:02:16.9]} 18. Bd3 {[%clk
0:02:24.7]} 18... c5 {[%clk 0:02:03.7]} 19. Be5 {[%clk 0:02:22.3]} 19... Bh6
{[%clk 0:01:29.6]} 20. Bf6 {[%clk 0:02:06.2]} 20... Qd6 {[%clk 0:01:19.9]} 21.
Re5 {[%clk 0:01:46.6]} 21... Nc6 {[%clk 0:01:10.9]} 22. Qf4 {[%clk 0:01:42.5]}
22... Bg7 {[%clk 0:00:46.6]} 23. Qh4 {[%clk 0:01:41.6]} 1-0

[Event "*** Titled Tuesday Blitz"]
[Site "Chess.com"]
[Date "2020.11.10"]
[Round "2"]
[White "olksuna"]
[Black "MoreChessJulia"]
[Result "1-0"]
[WhiteElo "2617"]
[BlackElo "2090"]
[TimeControl "180+1"]
[EndTime "10:17:44 PST"]
[Termination "olksuna won by checkmate"]

1. e4 {[%clk 0:02:59.2]} 1... g6 {[%clk 0:02:59.6]} 2. d4 {[%clk 0:02:58.8]}
2... Bg7 {[%clk 0:02:59.5]} 3. Nf3 {[%clk 0:02:59.3]} 3... c5 {[%clk 0:02:59.3]}
4. d5 {[%clk 0:02:57.8]} 4... d6 {[%clk 0:02:58.3]} 5. Nc3 {[%clk 0:02:56.5]}
5... Bg4 {[%clk 0:02:56.5]} 6. h3 {[%clk 0:02:54.2]} 6... Bxf3 {[%clk
0:02:56.1]} 7. Qxf3 {[%clk 0:02:55.1]} 7... Nd7 {[%clk 0:02:55.6]} 8. a4 {[%clk
0:02:54.9]} 8... a6 {[%clk 0:02:55.4]} 9. Qd1 {[%clk 0:02:54.2]} 9... Ngf6
{[%clk 0:02:49.3]} 10. Bc4 {[%clk 0:02:51.9]} 10... O-O {[%clk 0:02:47.6]} 11.
O-O {[%clk 0:02:52]} 11... b6 {[%clk 0:02:47.5]} 12. Re1 {[%clk 0:02:51.8]}
12... Ne5 {[%clk 0:02:46.7]} 13. Bf1 {[%clk 0:02:50.5]} 13... e6 {[%clk
0:02:35.2]} 14. Bg5 {[%clk 0:02:47.1]} 14... exd5 {[%clk 0:02:28]} 15. Nxd5
{[%clk 0:02:45.4]} 15... h6 {[%clk 0:02:27.1]} 16. Nxf6+ {[%clk 0:02:44.6]}
16... Bxf6 {[%clk 0:02:26.8]} 17. Bxh6 {[%clk 0:02:44.9]} 17... Re8 {[%clk
0:02:26.9]} 18. c3 {[%clk 0:02:45.2]} 18... Qd7 {[%clk 0:02:18.5]} 19. f4 {[%clk
0:02:29.7]} 19... Nc6 {[%clk 0:02:17.8]} 20. Qf3 {[%clk 0:02:23.4]} 20... Rad8
{[%clk 0:02:10.7]} 21. Rad1 {[%clk 0:02:17.7]} 21... Qb7 {[%clk 0:02:04]} 22.
Rd5 {[%clk 0:01:54.8]} 22... Ne7 {[%clk 0:01:58.5]} 23. Rd2 {[%clk 0:01:46.2]}
23... Kh7 {[%clk 0:01:56.3]} 24. Bg5 {[%clk 0:01:45.5]} 24... Ng8 {[%clk
0:01:54.8]} 25. Bc4 {[%clk 0:01:37.3]} 25... Rd7 {[%clk 0:01:44]} 26. Bd5 {[%clk
0:01:35.1]} 26... Qc7 {[%clk 0:01:42.2]} 27. h4 {[%clk 0:01:32.6]} 27... Bg7
{[%clk 0:01:38.7]} 28. h5 {[%clk 0:01:31.4]} 28... f5 {[%clk 0:01:25.6]} 29.
hxg6+ {[%clk 0:01:28.9]} 29... Kxg6 {[%clk 0:01:25.1]} 30. exf5+ {[%clk
0:01:26.5]} 30... Kxf5 {[%clk 0:01:23]} 31. Qd3+ {[%clk 0:01:21.2]} 31... Kg4
{[%clk 0:01:19]} 32. Qh3# {[%clk 0:01:19.7]} 1-0

[Event "*** Titled Tuesday Blitz"]
[Site "Chess.com"]
[Date "2020.11.10"]
[Round "2"]
[White "zverr1"]
[Black "vladimirssvesnikovs"]
[Result "0-1"]
[WhiteElo "2412"]
[BlackElo "2249"]
[TimeControl "180+1"]
[EndTime "10:17:50 PST"]
[Termination "vladimirssvesnikovs won by checkmate"]

1. d4 {[%clk 0:03:00.9]} 1... d5 {[%clk 0:02:54.8]} 2. c4 {[%clk 0:03:01.2]}
2... e6 {[%clk 0:02:50.5]} 3. Nc3 {[%clk 0:03:01.6]} 3... c6 {[%clk 0:02:50.4]}
4. Nf3 {[%clk 0:03:02.5]} 4... Nf6 {[%clk 0:02:49.2]} 5. e3 {[%clk 0:03:01.6]}
5... Nbd7 {[%clk 0:02:48.8]} 6. Qc2 {[%clk 0:03:02.4]} 6... Bd6 {[%clk
0:02:48.4]} 7. Bd3 {[%clk 0:02:58.2]} 7... O-O {[%clk 0:02:47.7]} 8. O-O {[%clk
0:02:57]} 8... dxc4 {[%clk 0:02:47.3]} 9. Bxc4 {[%clk 0:02:57.9]} 9... a6 {[%clk
0:02:45.6]} 10. e4 {[%clk 0:02:50.8]} 10... e5 {[%clk 0:02:43.2]} 11. dxe5
{[%clk 0:02:50.9]} 11... Nxe5 {[%clk 0:02:41.3]} 12. Nxe5 {[%clk 0:02:51.8]}
12... Bxe5 {[%clk 0:02:42.2]} 13. Be3 {[%clk 0:02:45.7]} 13... Ng4 {[%clk
0:02:30.4]} 14. h3 {[%clk 0:02:44.5]} 14... Nxe3 {[%clk 0:02:28]} 15. fxe3
{[%clk 0:02:45.4]} 15... Qg5 {[%clk 0:02:22.9]} 16. Rf3 {[%clk 0:02:42.8]} 16...
b5 {[%clk 0:02:16.9]} 17. Bb3 {[%clk 0:02:39.6]} 17... Be6 {[%clk 0:02:05.2]}
18. Raf1 {[%clk 0:02:36.7]} 18... Rad8 {[%clk 0:01:54.2]} 19. Bxe6 {[%clk
0:02:31.1]} 19... fxe6 {[%clk 0:01:50.6]} 20. Rxf8+ {[%clk 0:02:32]} 20... Rxf8
{[%clk 0:01:50.2]} 21. Rxf8+ {[%clk 0:02:32.9]} 21... Kxf8 {[%clk 0:01:51.1]}
22. Qf2+ {[%clk 0:02:31.7]} 22... Ke7 {[%clk 0:01:43.8]} 23. g4 {[%clk
0:02:25.7]} 23... h5 {[%clk 0:01:38.8]} 24. Qf3 {[%clk 0:02:23.6]} 24... hxg4
{[%clk 0:01:37.2]} 25. hxg4 {[%clk 0:02:24.5]} 25... Qh4 {[%clk 0:01:35.4]} 26.
Ne2 {[%clk 0:02:17.3]} 26... Qe1+ {[%clk 0:01:29.6]} 27. Kg2 {[%clk 0:02:16.3]}
27... g5 {[%clk 0:01:28.2]} 28. b3 {[%clk 0:02:11.1]} 28... c5 {[%clk
0:01:26.4]} 29. Qf2 {[%clk 0:01:53.6]} 29... Qd2 {[%clk 0:01:20.3]} 30. Kf3
{[%clk 0:01:45.5]} 30... Qd1 {[%clk 0:01:07.9]} 31. Qg2 {[%clk 0:01:40.7]} 31...
c4 {[%clk 0:01:04.6]} 32. bxc4 {[%clk 0:01:40]} 32... bxc4 {[%clk 0:01:05.5]}
33. Qh3 {[%clk 0:01:40.3]} 33... Kd6 {[%clk 0:01:02]} 34. Qh5 {[%clk 0:01:36.3]}
34... Qf1# {[%clk 0:01:00]} 0-1

[Event "*** Titled Tuesday Blitz"]
[Site "Chess.com"]
[Date "2020.11.10"]
[Round "2"]
[White "Das_Virus_2020"]
[Black "NovakCabarkapa"]
[Result "0-1"]
[WhiteElo "2410"]
[BlackElo "2733"]
[TimeControl "180+1"]
[EndTime "10:17:53 PST"]
[Termination "NovakCabarkapa won by resignation"]

1. e4 {[%clk 0:02:58.9]} 1... e6 {[%clk 0:02:59.8]} 2. Qe2 {[%clk 0:02:58.2]}
2... b6 {[%clk 0:02:55.5]} 3. Nf3 {[%clk 0:02:57.4]} 3... c5 {[%clk 0:02:48.8]}
4. d3 {[%clk 0:02:56.4]} 4... Be7 {[%clk 0:02:42.1]} 5. g3 {[%clk 0:02:56.4]}
5... g5 {[%clk 0:02:41.7]} 6. h3 {[%clk 0:02:52.7]} 6... Nc6 {[%clk 0:02:40]} 7.
Bg2 {[%clk 0:02:50.9]} 7... h5 {[%clk 0:02:40.2]} 8. c4 {[%clk 0:02:42.8]} 8...
d6 {[%clk 0:02:38.5]} 9. Nc3 {[%clk 0:02:41.9]} 9... Bb7 {[%clk 0:02:37.4]} 10.
Be3 {[%clk 0:02:40.9]} 10... Bf6 {[%clk 0:02:35.2]} 11. Qd2 {[%clk 0:02:21]}
11... g4 {[%clk 0:02:14.2]} 12. hxg4 {[%clk 0:02:20.3]} 12... hxg4 {[%clk
0:02:15.1]} 13. Rxh8 {[%clk 0:02:19.6]} 13... Bxh8 {[%clk 0:02:15.8]} 14. Nh2
{[%clk 0:01:59.3]} 14... Nf6 {[%clk 0:02:02.1]} 15. O-O-O {[%clk 0:01:46.6]}
15... Ne5 {[%clk 0:01:48.9]} 16. Bg5 {[%clk 0:01:27.8]} 16... Qd7 {[%clk
0:01:30.3]} 17. Bxf6 {[%clk 0:01:08.7]} 17... Bxf6 {[%clk 0:01:31.2]} 18. Qf4
{[%clk 0:01:08.1]} 18... Qe7 {[%clk 0:01:25.2]} 19. Kb1 {[%clk 0:00:37.7]} 19...
Bg5 {[%clk 0:01:24.5]} 0-1